lending/lending_fUSD_20250430
["ID","MTS","AMOUNT","RATE_DAILY","PERIOD"]
[359438346,1746018649915,-622.57,0.00037808,30]
[359438347,1746018649924,-470.0,0.00037808,30]
[359438348,1746018649934,-470.0,0.00037808,30]
[359438349,1746018649944,-622.59628831,0.00037808,30]
[359438350,1746018649953,-470.0,0.00037808,30]
[359438351,1746018649963,-470.0,0.00037808,30]
[359438352,1746018649972,-503.88301257,0.00037808,30]
[359438353,1746018649982,-251.74665677,0.00037808,30]
[359438354,1746018649991,-470.0,0.00037808,30]
[359438355,1746018650000,-470.0,0.00037808,30]
[359438356,1746018650010,-470.0,0.00037808,30]
[359438357,1746018650019,-470.0,0.00037808,30]
[359438358,1746018650028,-470.0,0.00037808,30]
[359438359,1746018650037,-541.03785791,0.00037808,30]
[359438360,1746018650047,-470.0,0.00037808,30]
[359438361,1746018650056,-535.19635294,0.00037808,30]
[359438362,1746018650066,-470.0,0.00037808,30]
[359438363,1746018650075,-470.0,0.00037808,30]
[359438364,1746018650084,-470.0,0.00037808,30]
[359438365,1746018650094,-470.0,0.00037808,30]
[359438366,1746018650103,-164.00113941,0.00037808,30]
[359438367,1746018650112,-470.0,0.00037808,30]
[359438368,1746018650122,-470.0,0.00037808,30]
[359438369,1746018650131,-470.0,0.00037808,30]
[359438370,1746018650141,-470.0,0.00037808,30]
[359438371,1746018650150,-470.0,0.00037808,30]
[359438372,1746018650159,-470.0,0.00037808,30]
[359438373,1746018650169,-582.07262745,0.00037808,30]
[359438374,1746018650178,-470.0,0.00037808,30]
[359438375,1746018650188,-303.40586061,0.00037808,30]
[359438376,1746018650198,-470.0,0.00037808,30]
[359438377,1746018650208,-470.0,0.00037808,30]
[359438378,1746018650218,-470.0,0.00037808,30]
[359438379,1746018650227,-578.40165005,0.00037808,30]
[359438380,1746018650237,-470.0,0.00037808,30]
[359438381,1746018650247,-470.0,0.00037808,30]
[359438382,1746018650256,-470.0,0.00037808,30]
[359438383,1746018650267,-470.0,0.00037808,30]
[359438384,1746018650276,-470.0,0.00037808,30]
[359438385,1746018650285,-537.76298222,0.00037808,30]
[359438386,1746018650296,-470.0,0.00037808,30]
[359438387,1746018650306,-470.0,0.00037808,30]
[359438388,1746018650315,-470.0,0.00037808,30]
[359438389,1746018650325,-470.0,0.00037808,30]
[359438390,1746018650335,-470.0,0.00037808,30]
[359438391,1746018650345,-470.0,0.00037808,30]
[359438392,1746018650354,-180.42588578,0.00037808,30]
[359438393,1746018650364,-558.82875552,0.00037808,30]
[359438394,1746018650374,-470.0,0.00037808,30]
[359438395,1746018650384,-500.0,0.00037808,30]
[359438396,1746018650393,-470.0,0.00037808,30]
[359438397,1746018650402,-500.0,0.00037808,30]
[359438398,1746018650412,-470.0,0.00037808,30]
[359438399,1746018650421,-502.48723587,0.00037808,30]
[359438400,1746018650431,-470.0,0.00037808,30]
[359438401,1746018650440,-545.95634592,0.00037808,30]
[359438402,1746018650449,-470.0,0.00037808,30]
[359438403,1746018650459,-470.0,0.00037808,30]
[359438404,1746018650468,-470.0,0.00037808,30]
[359438405,1746018650477,-470.0,0.00037808,30]
[359438406,1746018650486,-534.48498357,0.00037808,30]
[359438407,1746018650495,-470.0,0.00037808,30]
[359438408,1746018650504,-470.0,0.00037808,30]
[359438409,1746018650513,-470.0,0.00037808,30]
[359438410,1746018650522,-470.0,0.00037808,30]
[359438411,1746018650531,-511.97498772,0.00037808,30]
[359438412,1746018650540,-470.0,0.00037808,30]
[359438413,1746018650550,-470.0,0.00037808,30]
[359438414,1746018650559,-470.0,0.00037808,30]
[359438415,1746018650569,-470.0,0.00037808,30]
[359438416,1746018650578,-470.0,0.00037808,30]
[359438417,1746018650587,-470.0,0.00037808,30]
[359438419,1746018650597,-576.56975481,0.00037808,30]
[359438421,1746018650607,-465.23645078,0.00037808,30]
[359438423,1746018650616,-470.0,0.00037808,30]
[359438425,1746018650626,-810.91,0.00037808,30]
[359438427,1746018650635,-470.0,0.00037808,30]
[359438429,1746018650645,-810.91,0.00037808,30]
[359438431,1746018650654,-481.90308,0.00037808,30]
[359438433,1746018650665,-810.91,0.00037808,30]
[359438435,1746018650677,-810.91,0.00037808,30]
[359438437,1746018650687,-810.91,0.00037808,30]
[359438439,1746018650697,-810.91,0.00037808,30]
[359438441,1746018650707,-470.0,0.00037808,30]
[359438443,1746018650718,-810.91,0.00037808,30]
[359438445,1746018650727,-470.0,0.00037808,30]
[359438447,1746018650736,-810.91,0.00037808,30]
[359438449,1746018650748,-269.26950903,0.00037808,30]
[359438451,1746018650758,-470.0,0.00037808,30]
[359438453,1746018650767,-810.91,0.00037808,30]
[359438455,1746018650777,-32.04004437,0.00037808,30]
[359438505,1746019510409,5094.93004005,0.000154,2]
[359438506,1746019535757,1000.0,9e-05,2]
[359438794,1746019674090,3355.06995995,0.0001,2]
[359438795,1746019674113,655.11002422,0.0001,2]
[359438796,1746019675799,6754.897969,0.0002,4]
[359438797,1746019693580,200.0,0.0001634,2]
[359438798,1746019695463,194.65874869,0.000135,2]
[359438799,1746019704579,267.28634013,7.888e-05,2]
[359438800,1746019704600,111.37532383,7.888e-05,2]
[359438820,1746019831965,-1488.07243983,0.0001968,2]
[359438821,1746019831975,-1200.0,0.00019829,2]
[359438822,1746019831984,-300.0,0.00019829,2]
[359438823,1746019831995,-300.0,0.00019829,2]
[359438824,1746019832007,-169.36445823,0.0001983,2]
[359438825,1746019832019,-255.97559429,0.0001983,2]
[359438826,1746019832039,-1765.0,0.0001983,2]
[359438827,1746019832085,-779.1,0.0001983,2]
[359438828,1746019832097,-2177.42699,0.0001983,2]
[359438829,1746019832108,-450.0,0.0001983,2]
[359438830,1746019832146,-1315.05914698,0.0001983,2]
[359438831,1746019832157,-270.33973497,0.0001983,2]
[359438832,1746019832207,-700.0,0.0001983,2]
[359438834,1746019832219,-17446.32777479,0.0001983,2]
[359438836,1746019832230,-689.41057376,0.0001983,2]
[359438907,1746019838032,-661.31233623,0.0001983,2]
[359438908,1746019838041,-250.0,0.00019865,2]
[359438909,1746019838050,-200.0,0.00019865,2]
[359438910,1746019838061,-500.0,0.00019899,2]
[359438911,1746019838073,-292.14865594,0.00019899,2]
[359438912,1746019838085,-207.85134406,0.00019899,2]
[359438913,1746019838094,-500.0,0.00019899,2]
[359438914,1746019838104,-500.0,0.00019899,2]
[359438915,1746019838113,-11238.9646438,0.000199,2]
[359438916,1746019838125,-6642.98124168,0.000199,2]
[359438917,1746019838134,-4163.37861626,0.000199,2]
[359438918,1746019838144,-261.27175557,0.000199,2]
[359438919,1746019838153,-167.422489,0.000199,2]
[359438920,1746019838163,-485.62269536,0.000199,2]
[359438921,1746019838177,-1234.8582427,0.000199,2]
[359438922,1746019838189,-44059.77896194,0.000199,2]
[359438923,1746019838199,-5528.5635805,0.000199,2]
[359438924,1746019838209,-514.0,0.0001997,2]
[359438925,1746019838218,-500.0,0.00019973,2]
[359438926,1746019838227,-500.0,0.00019973,2]
[359438927,1746019838237,-375.89281427,0.0001998,2]
[359438928,1746019838246,-12383.5,0.0001999,2]
[359438929,1746019838255,-12383.5,0.0001999,2]
[359438930,1746019838265,-312.01631586,0.00019999,2]
[359438931,1746019838274,-500.0,0.00019999,2]
[359438932,1746019838284,-666.0,0.00019999,2]
[359438933,1746019838293,-153.11160673,0.00019999,2]
[359438934,1746019838303,-500.0,0.00019999,2]
[359438935,1746019838313,-500.0,0.00019999,2]
[359438936,1746019838322,-500.0,0.00019999,2]
[359438937,1746019838331,-500.0,0.00019999,2]
[359438938,1746019838340,-291.76093627,0.00019999,2]
[359438939,1746019838349,-500.0,0.00019999,2]
[359438940,1746019838359,-500.0,0.00019999,2]
[359438941,1746019838368,-184.15562749,0.00019999,2]
[359438942,1746019838377,-5653.54156838,0.0002,2]
[359438943,1746019838386,-36708.18656417,0.0002,2]
[359438944,1746019838395,-5215015.56621415,0.0002,2]
[359438945,1746019838441,-8873.66236798,0.0002,2]
[359438946,1746019838453,-842.04562337,0.0002,2]
[359438948,1746019838464,-633.053,0.0002,2]
[359438951,1746019840257,-1551440.79606639,0.0002,2]
[359438952,1746019840267,-39742.26236548,0.0002,2]
[359438953,1746019840277,-301.26767643,0.0002,2]
[359438954,1746019840287,-10000.0,0.0002,2]
[359438955,1746019840296,-1482.76242669,0.0002,2]
[359438956,1746019840305,-4303.89037235,0.0002,2]
[359438957,1746019840315,-481.2480226,0.0002,2]
[359438958,1746019840324,-19548.5721221,0.0002,2]
[359438959,1746019840334,-229382.55746373,0.0002,4]
[359438960,1746019840343,-3543898.37902791,0.0002,2]
[359438961,1746019840372,-477.10341977,0.0002,2]
[359438962,1746019840490,-487.52557497,0.0002,2]
[359438963,1746019840608,-2312.67860579,0.0002,2]
[359438964,1746019840620,-306.90989625,0.0002,2]
[359438966,1746019840726,-708.1440865,0.0002,2]
[359438968,1746019840738,-851.83,0.0002,2]
[359438976,1746019840829,-3000.0,0.0002,2]
[359439224,1746019843219,-370.36866154,0.0002,2]
[359439238,1746019843278,-1062.35938038,0.0002,2]
[359439250,1746019843391,-3771.08757957,0.0002,2]
[359439258,1746019843451,-5304.02095429,0.0002,2]
[359439260,1746019843462,-18345.69122021,0.0002,2]
[359439473,1746019845934,-2686.41,0.0002,2]
[359439474,1746019845946,-4160.0,0.0002,2]
[359439475,1746019845957,-579.999999,0.0002,2]
[359439476,1746019845993,-1063.957235,0.0002,2]
[359439477,1746019846007,-7695.31765998,0.0002,2]
[359439478,1746019846019,-547.58555703,0.0002,2]
[359439479,1746019846029,-543.04999366,0.0002,2]
[359439480,1746019846218,-286.43999999,0.0002,2]
[359439481,1746019846387,-107872.66468222,0.0002,2]
[359442428,1746020027784,403.0,0.00032876,60]
[359442429,1746020212150,250.0,0.00017,2]
[359442430,1746020213431,300.0,0.00019,2]
[359442431,1746020274936,154.8,0.00032877,60]
[359442432,1746020385366,-200.0,0.00019899,2]
[359442433,1746020385387,-83.38257923,0.00019899,2]
[359442434,1746020390648,-166.61742077,0.00019899,2]
[359442435,1746020390675,-3.57797045,0.000199,2]
[359442436,1746020394942,-187.43587134,0.000199,2]
[359442437,1746020401108,-8.98615821,0.000199,2]
[359442438,1746020401133,-188.66894,0.000199,2]
[359442439,1746020401819,-197.65509821,0.000199,2]
[359442440,1746020408890,-161.33106,0.000199,2]
[359442442,1746020560566,-161.33106,0.000198,2]
[359442443,1746020560587,-88.66894,0.000199,2]
[359442444,1746020560832,-613.67596179,0.000199,2]
[359442445,1746020560855,-258.29386342,0.000199,2]
[359442446,1746020560876,-193.86137774,0.000199,2]
[359442447,1746020560898,-1200.0,0.00019909,2]
[359442448,1746020560921,-300.0,0.00019909,2]
[359442449,1746020560943,-850.0,0.00019909,2]
[359442450,1746020560963,-168.26335106,0.0001991,2]
[359442451,1746020560984,-6165.90544599,0.0001991,2]
[359442452,1746020561753,-4443.32988088,0.0001991,2]
[359442453,1746020561779,-347.55020571,0.0001991,2]
[359442454,1746020561803,-805.3732204,0.0001991,2]
[359442455,1746020561825,-500.0,0.00019973,2]
[359442456,1746020561847,-558.63313616,0.00019973,2]
[359442457,1746020561869,-503.20345874,0.00019973,2]
[359442458,1746020561892,-500.0,0.00019973,2]
[359442459,1746020561914,-1825.2550061,0.00019986,2]
[359442460,1746020561937,-516.65509201,0.00019998,2]
[359442461,1746020562264,-55.12860985,0.00019998,2]
[359442462,1746020562297,-312.01631586,0.00019999,2]
[359442463,1746020562320,-500.0,0.00019999,2]
[359442464,1746020562345,-666.0,0.00019999,2]
[359442465,1746020562369,-2318.19,0.00019999,2]
[359442466,1746020562393,-500.0,0.00019999,2]
[359442467,1746020562415,-153.11160673,0.00019999,2]
[359442468,1746020562438,-184.15562749,0.00019999,2]
[359442469,1746020562462,-500.0,0.00019999,2]
[359442470,1746020562485,-500.0,0.00019999,2]
[359442471,1746020562513,-500.0,0.00019999,2]
[359442472,1746020562536,-500.0,0.00019999,2]
[359442473,1746020562561,-500.0,0.00019999,2]
[359442474,1746020562584,-291.76093627,0.00019999,2]
[359442475,1746020562606,-219.202,0.00019999,2]
[359442476,1746020562628,-2300.4349038,0.0002,2]
[359442477,1746020562778,-10000.0,0.0002,2]
[359442478,1746020563383,-10000.0,0.0002,2]
[359442479,1746020563834,-10000.0,0.0002,2]
[359442480,1746020563989,-10000.0,0.0002,2]
[359442481,1746020564413,-10000.0,0.0002,2]
[359442482,1746020564908,-10000.0,0.0002,2]
[359442483,1746020565434,-10000.0,0.0002,2]
[359442484,1746020566148,-10000.0,0.0002,2]
[359442485,1746020566382,-10000.0,0.0002,2]
[359442486,1746020566900,-10000.0,0.0002,2]
[359442487,1746020567551,-10000.0,0.0002,2]
[359442488,1746020567797,-10000.0,0.0002,2]
[359442489,1746020568265,-10000.0,0.0002,2]
[359442490,1746020568747,-10000.0,0.0002,2]
[359442491,1746020569271,-10000.0,0.0002,2]
[359442492,1746020569648,-10000.0,0.0002,2]
[359442493,1746020570184,-10000.0,0.0002,2]
[359442494,1746020570695,-10000.0,0.0002,2]
[359442495,1746020571168,-10000.0,0.0002,2]
[359442496,1746020571611,-10000.0,0.0002,2]
[359442497,1746020572429,-10000.0,0.0002,2]
[359442498,1746020572545,-10000.0,0.0002,2]
[359442499,1746020573025,-10000.0,0.0002,2]
[359442500,1746020573459,-10000.0,0.00019986,2]
[359442501,1746020573826,-1126.6308724,0.00019986,2]
[359442502,1746020573848,-8873.3691276,0.0002,2]
[359442503,1746020574368,-10000.0,0.0002,2]
[359442504,1746020574801,-10000.0,0.0002,2]
[359442505,1746020575324,-10000.0,0.0002,2]
[359442506,1746020575783,-10000.0,0.0002,2]
[359442507,1746020576540,-10000.0,0.0002,2]
[359442508,1746020576664,-10000.0,0.0002,2]
[359442509,1746020577002,-10000.0,0.0002,2]
[359442510,1746020577514,-10000.0,0.0002,2]
[359442511,1746020578147,-10000.0,0.0002,2]
[359442512,1746020579554,-10000.0,0.0002,2]
[359442513,1746020580661,-10000.0,0.0002,2]
[359442514,1746020588229,1077.491075,7.945e-05,2]
[359442515,1746020599741,-1000.0,0.000199,2]
[359442516,1746020599763,-12.0,0.00019973,2]
[359442517,1746020621621,167.56520524,9e-07,2]
[359442518,1746020703162,2004.43217244,0.00019304,2]
[359442829,1746020764114,150.0,1e-08,2]
[359443369,1746021032115,-300.0,0.00019909,2]
[359443372,1746021032125,-238.11810708,0.00019909,2]
[359443374,1746021032135,-282.52499996,0.00019909,2]
[359443376,1746021032149,-421.15084815,0.00019909,2]
[359443380,1746021032172,-258.20604481,0.00019909,2]
[359443382,1746021032181,-300.0,0.00019909,2]
[359443384,1746021032191,-325.74395519,0.0001991,2]
[359443388,1746021032217,-483.7074904,0.0001991,2]
[359443390,1746021032226,-1191.94685526,0.0001991,2]
[359443391,1746021032235,-240.87224039,0.0001991,2]
[359443393,1746021032244,-158.69407634,0.0001991,2]
[359443394,1746021032253,-181.02243682,0.0001991,2]
[359443395,1746021032263,-200.0,0.00019941,2]
[359443396,1746021032272,-200.0,0.00019978,2]
[359443397,1746021032281,-1670.779111,0.00019986,2]
[359443398,1746021032290,-6715.1849239,0.00019986,2]
[359443399,1746021032300,-36104.89286589,0.0002,2]
[359443400,1746021032311,-287.65460018,0.0002,2]
[359443401,1746021032405,-3111.3,0.0001991,2]
[359443523,1746021038182,-574.40905366,0.0001991,2]
[359443524,1746021038192,-5284226.39199872,0.0002,2]
[359443525,1746021038295,-6118.14,0.0002,2]
[359443526,1746021038353,-438.75999884,0.0002,2]
[359443658,1746021040419,-1054292.51744034,0.0002,2]
[359443659,1746021040430,-192.02180146,0.0002001,2]
[359443661,1746021040441,-5772.0,0.0002001,2]
[359443663,1746021040452,-1896.36,0.00020015,2]
[359443665,1746021040464,-2436.11,0.00020525,2]
[359443667,1746021040474,-749.68,0.00020693,2]
[359443669,1746021040486,-5941.4676668,0.000207,2]
[359443671,1746021040497,-470.66,0.00020716,2]
[359443673,1746021040508,-200.0,0.00020736,2]
[359443675,1746021040518,-2018.42,0.00020742,2]
[359443677,1746021040528,-1543.38,0.00020822,2]
[359443679,1746021040538,-3653.17,0.00020884,2]
[359443681,1746021040549,-627.07,0.00020933,2]
[359443683,1746021040559,-350.0,0.00021,2]
[359443685,1746021040569,-1485.19,0.00021183,2]
[359443687,1746021040579,-1000.0,0.00021203,2]
[359443689,1746021040589,-1000.0,0.00021203,2]
[359443691,1746021040599,-1000.0,0.00021203,2]
[359443693,1746021040610,-1000.0,0.00021203,2]
[359443695,1746021040619,-1000.0,0.00021203,2]
[359443697,1746021040629,-1000.0,0.00021203,2]
[359443699,1746021040639,-1000.0,0.00021203,2]
[359443701,1746021040648,-1000.0,0.00021203,2]
[359443703,1746021040663,-1000.0,0.00021203,2]
[359443705,1746021040672,-1000.0,0.00021203,2]
[359443707,1746021040682,-1000.0,0.00021203,2]
[359443709,1746021040691,-1000.0,0.00021203,2]
[359443711,1746021040701,-1000.0,0.00021203,2]
[359443713,1746021040711,-1000.0,0.00021203,2]
[359443714,1746021040720,-1000.0,0.00021203,2]
[359443716,1746021040730,-1000.0,0.00021203,2]
[359443718,1746021040740,-1000.0,0.00021203,2]
[359443720,1746021040749,-1000.0,0.00021203,2]
[359443722,1746021040759,-1000.0,0.00021203,2]
[359443724,1746021040770,-1000.0,0.00021203,2]
[359443726,1746021040779,-1000.0,0.00021203,2]
[359443728,1746021040789,-1000.0,0.00021203,2]
[359443730,1746021040798,-1000.0,0.00021203,2]
[359443731,1746021040808,-1000.0,0.00021203,2]
[359443732,1746021040817,-1000.0,0.00021203,2]
[359443733,1746021040826,-1000.0,0.00021203,2]
[359443734,1746021040836,-1000.0,0.00021203,2]
[359443735,1746021040846,-1000.0,0.00021203,2]
[359443736,1746021040855,-1000.0,0.00021203,2]
[359443737,1746021040865,-1000.0,0.00021203,2]
[359443738,1746021040875,-1000.0,0.00021203,2]
[359443739,1746021040884,-1000.0,0.00021203,2]
[359443740,1746021040894,-1000.0,0.00021203,2]
[359443741,1746021040906,-1000.0,0.00021203,2]
[359443742,1746021040916,-1000.0,0.00021203,2]
[359443743,1746021040926,-1000.0,0.00021203,2]
[359443744,1746021040936,-1000.0,0.00021203,2]
[359443745,1746021040946,-1000.0,0.00021203,2]
[359443746,1746021040956,-1000.0,0.00021203,2]
[359443747,1746021040967,-1000.0,0.00021203,2]
[359443749,1746021040978,-1000.0,0.00021203,2]
[359443750,1746021040988,-1000.0,0.00021203,2]
[359443751,1746021040997,-1000.0,0.00021203,2]
[359443752,1746021041006,-1000.0,0.00021203,2]
[359443753,1746021041016,-1000.0,0.00021203,2]
[359443754,1746021041025,-1000.0,0.00021203,2]
[359443755,1746021041035,-1000.0,0.00021203,2]
[359443756,1746021041044,-1000.0,0.00021203,2]
[359443757,1746021041053,-1000.0,0.00021203,2]
[359443758,1746021041062,-1000.0,0.00021203,2]
[359443759,1746021041072,-1000.0,0.00021203,2]
[359443760,1746021041081,-1000.0,0.00021203,2]
[359443762,1746021041092,-151.0,0.00021303,2]
[359443763,1746021041102,-207.4,0.00021303,2]
[359443764,1746021041111,-23900.0,0.00021346,2]
[359443765,1746021041121,-1990.62,0.00021405,2]
[359443766,1746021041130,-2066.55667239,0.000215,3]
[359443767,1746021041139,-200.0,0.00021539,2]
[359443768,1746021041149,-250.0,0.00021603,2]
[359443769,1746021041161,-420.0,0.00021681,2]
[359443770,1746021041170,-420.0,0.00021681,2]
[359443771,1746021041180,-7314.26836107,0.000217,2]
[359443772,1746021041190,-1069.97,0.00021712,2]
[359443773,1746021041200,-5407.15,0.00021757,2]
[359443774,1746021041209,-150.99,0.00021757,2]
[359443775,1746021041219,-999.99,0.00021757,2]
[359443776,1746021041228,-2066.5566721,0.00021762,3]
[359443777,1746021041237,-1680.0,0.00021785,2]
[359443778,1746021041250,-5053.54823058,0.000218,2]
[359443779,1746021041260,-200.0,0.0002189,2]
[359443780,1746021041270,-250.0,0.000219,2]
[359443781,1746021041280,-200.0,0.00021901,2]
[359443782,1746021041290,-250.0,0.00021901,2]
[359443783,1746021041300,-150.0,0.00021917,2]
[359443784,1746021041310,-152.0,0.00021918,2]
[359443785,1746021041320,-247.87,0.00021958,2]
[359443786,1746021041330,-168.39,0.00022194,2]
[359443787,1746021041340,-1896.36,0.00022279,2]
[359443788,1746021041350,-34262.70999449,0.000225,2]
[359443789,1746021041360,-2066.5566721,0.00022624,4]
[359443790,1746021041370,-151.0,0.00022672,2]
[359443791,1746021041380,-215.0738,0.00022672,2]
[359443792,1746021041390,-505.3753181,0.0002271,2]
[359443793,1746021041400,-10618.53517727,0.00022826,2]
[359443795,1746021041412,-1503.18221885,0.00023,2]
[359443796,1746021041422,-400.0,0.00023,2]
[359443797,1746021041432,-33098.75819492,0.000232,2]
[359443798,1746021041441,-150.0,0.00023287,2]
[359443799,1746021041451,-168.39,0.00023415,2]
[359443800,1746021041465,-2066.5566721,0.00023486,4]
[359443801,1746021041474,-200.0,0.000235,2]
[359443802,1746021041484,-587.0,0.0002361,2]
[359443803,1746021041493,-587.0,0.0002361,2]
[359443804,1746021041504,-240.87224033,0.00023744,2]
[359443805,1746021041707,-171.96,0.00023836,2]
[359443806,1746021041718,-2109.0,0.00023838,2]
[359443807,1746021041728,-547.5638548,0.00024,2]
[359443808,1746021041737,-151.0,0.00024041,2]
[359443809,1746021041747,-223.0315306,0.00024041,2]
[359443810,1746021041757,-2066.5566721,0.00024348,5]
[359443811,1746021041767,-4011.37837022,0.00024397,2]
[359443812,1746021041776,-1896.36,0.00024542,2]
[359443813,1746021041785,-168.39,0.00024636,2]
[359443814,1746021041795,-150.0,0.00024657,2]
[359443815,1746021041804,-500.0,0.00024658,2]
[359443816,1746021041813,-500.0,0.00024658,2]
[359443817,1746021041823,-500.0,0.00024773,2]
[359443818,1746021041832,-500.0,0.00024773,2]
[359443819,1746021041841,-605.49057199,0.00024773,2]
[359443820,1746021041851,-500.0,0.00024873,2]
[359443821,1746021041860,-280.17388614,0.00024873,2]
[359443822,1746021041870,-500.0,0.00024873,2]
[359443823,1746021041879,-385.16450765,0.00024873,2]
[359443824,1746021041889,-527536.553409,0.000249,3]
[359443825,1746021041898,-150.0,0.00024947,2]
[359443826,1746021041908,-450.0,0.00025,2]
[359443827,1746021041917,-2066.5566721,0.0002521,5]
[359443828,1746021041927,-151.0,0.0002541,2]
[359443829,1746021041936,-231.28369723,0.0002541,2]
[359443830,1746021041945,-154.065,0.00025562,2]
[359443831,1746021041955,-922.0,0.00025562,2]
[359443832,1746021041964,-1339.0,0.00025562,2]
[359443833,1746021041973,-797.0,0.00025562,2]
[359443834,1746021041983,-1289.0,0.00025562,2]
[359443835,1746021041992,-582.625,0.00025562,2]
[359443836,1746021042002,-1464.905,0.00025562,2]
[359443837,1746021042011,-2068.0,0.00025562,2]
[359443838,1746021042021,-618.48,0.00025562,2]
[359443839,1746021042031,-1033.602,0.00025562,2]
[359443840,1746021042040,-4001.0,0.00025562,2]
[359443841,1746021042049,-878.0,0.00025562,2]
[359443842,1746021042059,-153.0,0.00025562,2]
[359443843,1746021042069,-6746.0,0.00025562,2]
[359443844,1746021042078,-872.0,0.00025562,2]
[359443845,1746021042087,-823.0,0.00025711,2]
[359443847,1746021042096,-168.39,0.00025857,2]
[359443848,1746021042106,-250.0,0.00026004,2]
[359443849,1746021042116,-150.0,0.00026027,2]
[359443851,1746021042125,-2066.5566721,0.00026072,6]
[359443852,1746021042134,-740.09046653,0.00026253,2]
[359443853,1746021042144,-20733.65458064,0.000265,2]
[359443854,1746021042155,-151.0,0.00026779,2]
[359443855,1746021042164,-239.84119403,0.00026779,2]
[359443856,1746021042174,-1896.36,0.00026806,2]
[359443857,1746021042183,-2066.5566721,0.00026934,7]
[359443858,1746021042193,-500.0,0.00027,2]
[359443859,1746021042202,-339.09745849,0.00027254,2]
[359443860,1746021042211,-6076.46701227,0.00027342,2]
[359443861,1746021042221,-485.8571884,0.00027397,2]
[359443862,1746021042231,-150.56035621,0.00027397,2]
[359443863,1746021042240,-210.82603367,0.00027397,2]
[359443864,1746021042249,-400.0,0.00027397,2]
[359443865,1746021042258,-400.0,0.00027397,2]
[359443866,1746021042267,-509.0,0.00027397,2]
[359443867,1746021042277,-312.18,0.00027397,2]
[359443868,1746021042290,-240.87224033,0.00027578,2]
[359443869,1746021042300,-2066.5566721,0.00027797,7]
[359443870,1746021042311,-456.64000919,0.00027892,2]
[359443871,1746021042320,-1152.0,0.00027999,2]
[359443872,1746021042330,-151.0,0.00028148,2]
[359443873,1746021042340,-248.71531821,0.00028148,2]
[359443874,1746021042350,-2047.86,0.00028203,2]
[359443875,1746021042359,-9814.37,0.00028203,2]
[359443876,1746021042369,-922.0,0.00028562,2]
[359443877,1746021042379,-1339.0,0.00028562,2]
[359443878,1746021042388,-797.0,0.00028562,2]
[359443879,1746021042397,-1288.0,0.00028562,2]
[359443880,1746021042408,-580.0,0.00028562,2]
[359443881,1746021042418,-1449.0,0.00028562,2]
[359443882,1746021042428,-2068.0,0.00028562,2]
[359443883,1746021042438,-549.0,0.00028562,2]
[359443884,1746021042448,-913.0,0.00028562,2]
[359443885,1746021042461,-2072.024,0.00028562,2]
[359443886,1746021042472,-878.0,0.00028562,2]
[359443887,1746021042481,-153.0,0.00028562,2]
[359443888,1746021042494,-6746.0,0.00028562,2]
[359443889,1746021042505,-2066.5566721,0.00028659,8]
[359443890,1746021042515,-550.0,0.00029,2]
[359443891,1746021042525,-1896.36,0.0002907,2]
[359443892,1746021042535,-181.02243681,0.0002922,2]
[359443893,1746021042545,-152.45,0.00029505,2]
[359443894,1746021042555,-500.0,0.00029507,2]
[359443895,1746021042566,-151.0,0.00029517,2]
[359443896,1746021042577,-257.91778498,0.00029517,2]